bitfinex/quotes_ETHUSD_20240718
["timestamp","ask_amount","ask_price","bid_price","bid_amount"]
[1721345039449,1.037,3437.2,3437.0,2.90944]
[1721345039775,0.06461571,3437.1,3437.0,2.90944]
[1721345040174,2.90902,3437.6,3437.0,2.90944]
[1721345040375,0.06461571,3437.1,3437.0,2.90944]
[1721345040578,1.037,3437.3,3437.0,2.90944]
[1721345040774,0.06461571,3437.1,3437.0,2.90944]
[1721345040979,1.037,3437.5,3437.0,2.90944]
[1721345041282,1.967995,3437.5,3437.0,2.90944]
[1721345041483,1.037,3437.2,3437.0,2.90944]
[1721345041660,0.06473571,3437.4,3437.0,2.90944]
[1721345041977,0.06461571,3437.1,3437.0,2.90944]
[1721345042176,1.037,3437.5,3437.0,2.90944]
[1721345042379,0.06461571,3437.1,3437.0,2.90944]
[1721345042587,1.037,3437.4,3437.0,2.90944]
[1721345042752,0.06461571,3437.1,3437.0,2.90944]
[1721345042951,3.94602,3437.6,3437.0,2.90944]
[1721345042952,1.037,3437.4,3437.0,2.90944]
[1721345043466,1.037,3437.2,3437.0,2.90944]
[1721345043667,0.06470324,3437.3,3437.0,2.90944]
[1721345043981,0.06462325,3437.1,3437.0,2.90944]
[1721345044482,1.037,3437.2,3437.0,2.90944]
[1721345044683,0.06462325,3437.1,3437.0,2.90944]
[1721345045653,3.94602,3437.6,3437.0,2.90944]
[1721345045853,1.037,3437.4,3437.0,2.90944]
[1721345046091,0.06399991,3437.3,3437.0,2.90944]
[1721345046356,1.037,3437.2,3437.0,2.90944]
[1721345046756,0.06391991,3437.1,3437.0,2.90944]
[1721345047175,1.037,3437.5,3437.0,2.90944]
[1721345047373,0.06391991,3437.1,3437.0,2.90944]
[1721345048053,1.037,3437.5,3437.1,2.90941]
[1721345048366,0.06403991,3437.4,3437.3,2.90926]
[1721345048560,0.06403991,3437.4,3437.3,5.21896]
[1721345048768,1.037,3437.8,3437.3,5.21896]
[1721345049305,0.06407903,3437.7,3437.3,5.21896]
[1721345049456,1.037,3437.6,3437.3,5.21896]
[1721345049788,0.06397756,3437.5,3437.3,5.21896]
[1721345050167,1.037,3437.7,3437.3,5.21896]
[1721345050351,0.06398083,3437.4,3437.3,5.21896]
[1721345050702,0.06391415,3437.4,3437.3,2.3097]
[1721345051185,2.90884,3437.8,3437.3,2.3097]
[1721345051351,0.06393757,3437.4,3437.3,2.3097]
[1721345051558,1.037,3437.5,3437.3,2.3097]
[1721345051757,0.06393757,3437.4,3437.3,2.3097]
[1721345052163,0.824613,3437.7,3437.3,2.3097]
[1721345052366,0.06393757,3437.4,3437.3,2.3097]
[1721345052571,1.037,3437.5,3437.3,2.3097]
[1721345052773,0.06393757,3437.4,3437.3,2.3097]
[1721345055305,0.06357757,3437.4,3437.3,2.3097]
[1721345056206,1.861613,3437.7,3437.3,2.3097]
[1721345056357,0.06352611,3437.4,3437.3,2.3097]
[1721345056557,1.037,3437.5,3437.3,2.3097]
[1721345056913,0.06350462,3437.4,3437.3,2.3097]
[1721345058194,1.037,3437.5,3437.3,2.3097]
[1721345058378,0.06350462,3437.4,3437.2,2.90933]
[1721345058601,1.037,3437.3,3437.2,2.90933]
[1721345058785,0.06350462,3437.4,3437.2,2.90933]
[1721345058990,0.06346462,3437.3,3437.2,2.90933]
[1721345059366,1.037,3437.4,3437.1,2.3414]
[1721345059659,0.46396485,3437.3,3436.9,5.25805]
[1721345059886,1.037,3437.2,3436.9,5.25805]
[1721345060261,0.06340137,3437.1,3436.9,5.25805]
[1721345061196,1.037,3437.2,3436.9,5.25805]
[1721345061394,0.0634082,3437.0,3436.9,5.25805]
[1721345061701,0.06345503,3437.0,3436.9,5.25805]
[1721345062000,1.037,3437.2,3436.9,5.25805]
[1721345062202,0.06343547,3437.0,3436.9,5.25805]
[1721345062506,0.06345889,3437.0,3436.9,5.25805]
[1721345062704,1.037,3437.2,3436.9,5.25805]
[1721345062915,0.06345889,3437.0,3436.9,5.25805]
[1721345063060,1.037,3437.2,3436.9,5.25805]
[1721345063261,0.06350084,3437.1,3436.9,5.25805]
[1721345065913,0.06350084,3437.1,3437.0,2.90951]
[1721345066078,3.94609,3437.5,3437.1,2.3332]
[1721345066483,0.06349106,3437.4,3437.1,2.3332]
[1721345067014,0.06349106,3437.4,3437.1,2.90941]
[1721345067314,0.06349106,3437.4,3437.2,2.3332]
[1721345068265,2.90901,3437.6,3437.2,2.3332]
[1721345068466,1.037,3437.4,3437.2,2.3332]
[1721345068696,0.06352561,3437.3,3437.2,2.3332]
[1721345069293,0.06352561,3437.3,3437.2,5.24254]
[1721345071367,0.06352561,3437.3,3437.2,2.3332]
[1721345072501,0.06352561,3437.3,3437.0,2.90943]
[1721345073510,1.037,3437.1,3437.0,2.90943]
[1721345073804,0.06355481,3437.2,3437.0,3.92127239]
[1721345073971,0.06338332,3437.1,3437.0,2.90943]
[1721345074176,1.037,3437.3,3437.0,3.92127223]
[1721345074386,1.037,3437.3,3437.0,2.90943]
[1721345074686,0.06342332,3437.2,3437.0,2.90943]
[1721345074995,1.037,3437.3,3436.9,5.25954]
[1721345074996,1.037,3437.3,3437.1,2.90942]
[1721345075208,1.037,3437.5,3437.1,5.81879]
[1721345075408,1.037,3437.5,3437.1,2.90937]
[1721345075606,1.037,3437.5,3437.1,5.81874]
[1721345075976,1.037,3437.5,3437.1,2.90937]
[1721345076310,1.037,3437.5,3437.1,2.90936]
[1721345076908,0.06349365,3437.4,3437.1,2.90936]
[1721345079810,0.06349365,3437.4,3437.2,2.418]
[1721345083804,0.06349365,3437.4,3437.2,5.3273]
[1721345083982,4.037,3437.7,3437.2,5.3273]
[1721345084183,0.06329253,3437.3,3437.2,5.3273]
[1721345084395,1.037,3437.5,3437.2,5.3273]
[1721345084579,0.06329253,3437.3,3437.2,5.3273]
[1721345084783,5.90893,3437.7,3437.2,5.3273]
[1721345084979,0.06327104,3437.3,3437.2,5.3273]
[1721345085193,1.037,3437.6,3437.2,5.3273]
[1721345085511,0.985467,3437.6,3437.2,5.3273]
[1721345085819,1.10035747,3437.5,3437.2,5.3273]
[1721345086606,0.06335747,3437.5,3437.2,5.3273]
[1721345087115,1.10035747,3437.5,3437.2,5.3273]
[1721345088020,1.10035747,3437.5,3437.2,2.418]
[1721345088315,1.037,3437.3,3437.0,2.90946]
[1721345088481,1.037,3437.1,3437.0,2.90946]
[1721345088676,1.10024429,3437.1,3437.0,5.43907003]
[1721345088984,0.06324429,3437.1,3437.0,5.43907003]
[1721345089378,1.037,3437.3,3437.0,2.90946]
[1721345089620,0.06329113,3437.1,3437.0,2.90946]
[1721345089787,3.94609,3437.5,3437.0,5.43907042]
[1721345090006,0.06331455,3437.1,3437.0,2.90946]
[1721345090223,1.037,3437.3,3437.0,5.43906993]
[1721345090530,2.90909,3437.5,3437.0,8.20881]
[1721345090531,0.06336138,3437.1,3437.0,8.20881]
[1721345090741,4.037,3437.8,3437.1,2.90935]
[1721345090935,1.037,3437.6,3437.1,2.90935]
[1721345091527,1.037,3437.6,3437.2,2.3899]
[1721345091931,1.037,3437.6,3437.3,2.90924]
[1721345092528,0.06353577,3437.5,3437.3,2.90924]
[1721345092838,0.06353577,3437.5,3437.4,2.3899]
[1721345093254,1.037,3437.6,3437.4,2.3899]
[1721345093404,0.06354117,3437.5,3437.4,2.3899]
[1721345095032,1.037,3437.6,3437.4,2.3899]
[1721345095235,0.06353902,3437.5,3437.4,2.3899]
[1721345096033,6.94584,3437.8,3437.4,2.3899]
[1721345096237,0.06354224,3437.5,3437.4,2.3899]
[1721345096437,1.037,3437.5,3437.4,2.3899]
[1721345096603,1.10054224,3437.5,3437.4,2.3899]
[1721345097001,1.10054224,3437.5,3437.2,2.4758]
[1721345097206,1.037,3437.3,3437.2,2.4758]
[1721345097517,1.10046225,3437.3,3437.2,2.4758]
[1721345097702,0.06346225,3437.3,3437.2,2.4758]
[1721345097906,1.037,3437.6,3437.2,5.38507]
[1721345098135,0.06341332,3437.5,3437.2,5.38507]
[1721345098930,1.037,3437.6,3437.2,5.38507]
[1721345099233,0.06337333,3437.4,3437.2,5.38507]
[1721345099443,1.037,3437.4,3437.2,5.38507]
[1721345099650,0.06333333,3437.3,3437.2,5.38507]
[1721345101322,1.037,3437.6,3437.2,5.38507]
[1721345101634,0.06333333,3437.3,3437.2,5.38507]
[1721345102127,1.037,3437.6,3437.2,5.38507]
[1721345102312,0.06333333,3437.3,3437.2,5.38507]
[1721345102519,1.037,3437.4,3437.2,5.38507]
[1721345102721,0.06333333,3437.3,3437.2,5.38507]
[1721345102932,1.037,3437.6,3437.2,5.38507]
[1721345103118,3.0,3437.7,3437.2,5.38507]
[1721345103119,1.037,3437.4,3437.2,5.38507]
[1721345103655,0.06333333,3437.3,3437.2,5.38507]
[1721345104025,0.06333333,3437.3,3437.0,5.24263]
[1721345104242,0.06333333,3437.3,3437.1,3.92126692]
[1721345104421,0.06333333,3437.3,3437.1,2.90942]
[1721345105684,1.037,3437.2,3437.1,2.90942]
[1721345105979,0.06328686,3437.2,3437.1,3.92126676]
[1721345106128,1.037,3437.4,3437.1,3.92126676]
[1721345106329,0.06328686,3437.2,3437.1,2.90942]
[1721345106661,3.94601,3437.6,3437.1,3.92126677]
[1721345106863,0.06328686,3437.2,3437.1,2.90942]
[1721345107470,1.037,3437.5,3437.3,2.3332]
[1721345107769,1.037,3437.5,3437.3,5.24239]
[1721345107975,4.037,3437.7,3437.3,5.24239]
[1721345109379,3.0,3437.7,3437.4,2.90915]
[1721345109576,3.0,3438.1,3437.5,2.3663]
[1721345109870,1.037,3438.2,3437.9,2.2663]
[1721345110031,1.037,3438.0,3437.9,2.2663]
[1721345110769,1.09785647,3438.0,3437.9,2.2663]
[1721345111648,1.09785647,3438.0,3437.9,5.17505]
[1721345111857,0.06085647,3438.0,3437.9,8.0838]
[1721345112366,1.49303654,3438.4,3438.1,2.90856]
[1721345112763,1.037,3438.4,3438.1,2.90856]
[1721345113466,1.037,3438.2,3438.1,2.90856]
[1721345113684,1.037,3438.4,3438.1,2.90856]
[1721345114280,1.037,3438.2,3437.9,5.17498]
[1721345114765,0.06099953,3438.1,3438.0,2.90866]
[1721345114972,1.037,3438.2,3438.0,2.90866]
[1721345115178,0.06099953,3438.1,3438.0,2.90866]
[1721345115480,1.037,3438.2,3438.0,2.90866]
[1721345115978,0.06099953,3438.1,3438.0,2.90866]
[1721345116141,1.037,3438.2,3438.0,2.90866]
[1721345116482,0.06092963,3438.1,3437.9,2.2663]
[1721345116777,1.037,3438.0,3437.7,2.90889]
[1721345116965,1.09788964,3438.0,3437.7,2.90886]
[1721345118180,1.09788964,3438.0,3437.8,2.90881]
[1721345120745,1.09788964,3438.0,3437.6,5.17545]
[1721345121462,1.09788964,3438.0,3437.7,2.90891]
[1721345128517,1.09788964,3438.0,3437.7,5.81776]
[1721345128705,1.09788964,3438.0,3437.7,2.90885]
[1721345129606,1.09788964,3438.0,3437.7,5.81771]
[1721345129775,0.06088964,3438.0,3437.7,5.81771]
[1721345129961,2.90827,3438.5,3437.8,2.90883]
[1721345130167,1.037,3438.1,3437.9,2.90873]
[1721345130599,1.42982679,3441.7,3437.6,2.2665]
[1721345130600,6.36386473,3438.9,3438.0,2.4152]
[1721345130810,0.45591473,3438.9,3438.6,2.90813]
[1721345131039,0.45591473,3438.9,3438.6,2.9081]
[1721345131328,1.037,3439.0,3438.7,2.90807]
[1721345131468,2.90765,3439.2,3438.7,2.90807]
[1721345131668,1.037,3438.9,3438.7,5.26377]
[1721345132410,0.0507074,3438.8,3438.7,5.26377]
[1721345133122,0.0507074,3438.8,3438.5,2.90822]
[1721345133411,0.0507074,3438.8,3438.7,2.90807]
[1721345134626,1.49285166,3439.5,3439.1,2.90771]
[1721345134772,1.49285166,3439.5,3439.1,2.90769]
[1721345134971,0.45585166,3439.5,3439.2,2.90765]
[1721345135189,1.037,3439.6,3439.2,5.34434]
[1721345135499,1.037,3439.8,3439.5,2.90739]
[1721345135706,2.90691,3440.1,3439.5,2.90739]
[1721345135707,1.037,3439.6,3439.5,2.90739]
[1721345136067,1.08806125,3439.6,3439.5,2.90739]
[1721345137288,0.05106125,3439.6,3439.5,2.90739]
[1721345137703,1.037,3439.8,3439.6,2.9073]
[1721345139536,0.05121992,3439.7,3439.6,2.9073]
[1721345139885,1.037,3439.8,3439.6,2.9073]
[1721345140122,0.05121992,3439.7,3439.6,2.9073]
[1721345140528,1.037,3439.8,3439.6,2.9073]
[1721345140828,0.05121992,3439.7,3439.6,2.9073]
[1721345141042,1.037,3439.8,3439.6,2.9073]
[1721345141213,0.05122424,3439.7,3439.6,2.9073]
[1721345141411,1.037,3439.8,3439.6,2.9073]
[1721345141596,0.05122424,3439.7,3439.6,2.9073]
[1721345141929,1.037,3439.8,3439.6,2.9073]
[1721345142088,0.05122532,3439.7,3439.6,2.9073]
[1721345142537,1.037,3439.8,3439.7,2.90723]
[1721345143030,1.08826526,3439.8,3439.7,2.90723]
[1721345143524,0.05126526,3439.8,3439.7,5.29113]
[1721345143725,0.05126526,3439.8,3439.7,8.19836]
[1721345143934,1.037,3440.0,3439.8,2.90711]
[1721345146730,0.05133973,3439.9,3439.8,2.90711]
[1721345148617,0.05133973,3439.9,3439.8,5.81425]
[1721345148812,0.45576699,3440.2,3440.1,2.90689]
[1721345148813,1.49276699,3440.2,3440.1,2.90689]
[1721345149120,1.037,3440.2,3440.1,2.90689]
[1721345149317,1.08849622,3440.2,3440.1,2.90689]
[1721345157626,1.08849622,3440.2,3440.1,5.26229]
[1721345157956,1.037,3440.4,3440.1,5.26229]
[1721345158251,0.05154695,3440.3,3440.1,5.26229]
[1721345160543,0.05154695,3440.3,3440.2,2.9068]
[1721345161469,1.08854695,3440.3,3440.2,2.9068]
[1721345162258,0.05154695,3440.3,3440.2,2.9068]
[1721345162432,3.0,3440.7,3440.2,2.9068]
[1721345162632,0.04979646,3440.3,3440.2,2.9068]
[1721345162844,1.037,3440.4,3440.2,2.9068]
[1721345163034,0.04927821,3440.3,3440.2,2.9068]
[1721345165664,0.04927821,3440.3,3440.2,5.8136]
[1721345165861,1.037,3440.6,3440.5,2.90649]
[1721345166042,8.82886281,3441.1,3440.5,2.90649]
[1721345166043,1.037,3440.7,3440.5,2.90649]
[1721345166485,0.04933812,3440.6,3440.5,2.90649]
[1721345170862,0.04933812,3440.6,3440.3,5.30827]
[1721345171077,1.037,3440.4,3440.3,5.30827]
[1721345171447,1.08640351,3440.4,3440.3,5.30827]
[1721345173367,1.08640351,3440.4,3440.3,2.90667]
[1721345174102,1.08640351,3440.4,3440.0,2.2991]
[1721345174270,1.037,3440.2,3440.0,2.2991]
[1721345174468,1.037,3440.2,3440.0,5.20607]
[1721345174676,1.037,3440.2,3440.0,2.90697]
[1721345174885,1.037,3440.2,3439.8,2.90706]
[1721345175088,1.037,3440.2,3439.7,12.64628]
[1721345175089,1.037,3440.2,3439.9,2.90703]
[1721345175900,1.037,3440.2,3439.9,2.907]
[1721345177500,0.04936085,3440.1,3439.9,2.907]
[1721345180001,0.04936085,3440.1,3439.9,5.814]
[1721345180226,1.037,3440.4,3439.9,2.907]
[1721345180504,0.04932403,3440.0,3439.9,5.814]
[1721345180700,1.037,3440.4,3440.0,2.90696]
[1721345181008,2.90647,3440.6,3440.1,5.33863]
[1721345181009,0.04942241,3440.3,3440.1,5.33863]
[1721345181211,1.037,3440.6,3440.1,5.33863]
[1721345181518,0.04938247,3440.2,3440.1,5.33863]
[1721345181732,1.037,3440.6,3440.1,5.33863]
[1721345184451,0.04943899,3440.5,3440.1,5.33863]
[1721345184651,0.04943899,3440.5,3440.2,2.90679]
[1721345185708,0.04943899,3440.5,3440.3,2.90669]
[1721345188852,0.04943899,3440.5,3440.2,2.9068]
[1721345192923,0.04943899,3440.5,3440.2,5.81354]
[1721345193553,0.04943899,3440.5,3440.2,2.90674]
[1721345193937,1.037,3440.4,3440.2,2.90674]
[1721345194467,0.04943965,3440.3,3440.2,2.90674]
[1721345196742,0.04943965,3440.3,3440.0,5.81383]
[1721345196938,0.04943965,3440.3,3440.1,2.90689]
[1721345202092,0.04943965,3440.3,3440.0,2.90696]
[1721345202391,0.04943965,3440.3,3439.8,2.4331]
[1721345202591,0.04943965,3440.3,3439.8,5.34022]
[1721345202892,2.9071,3439.9,3439.4,2.2889]
[1721345203213,3.94399,3440.0,3439.5,2.90739]
[1721345203497,0.04927157,3439.8,3439.5,2.90739]
[1721345203699,3.94399,3440.0,3439.5,2.90739]
[1721345207273,0.04935257,3439.9,3439.5,2.90739]
[1721345211379,1.037,3439.8,3439.4,5.19637]
[1721345211706,0.04933705,3439.7,3439.4,5.19637]
[1721345211870,1.037,3439.8,3439.4,5.19637]
[1721345212068,1.0862971,3439.6,3439.4,2.2889]
[1721345212267,1.037,3439.6,3439.1,2.90772]
[1721345212593,1.037,3439.6,3439.2,2.90765]
[1721345212594,0.04908007,3439.5,3439.2,2.90765]
[1721345213132,0.04908007,3439.5,3439.3,2.3815]
[1721345213287,1.037,3439.7,3439.3,2.3815]
[1721345214007,0.0490127,3439.6,3439.3,5.28905]
[1721345215249,1.037,3439.9,3439.3,5.289]
[1721345215511,0.04883834,3439.5,3439.3,5.289]
[1721345215817,2.90714,3439.8,3439.3,5.289]
[1721345216169,0.04892042,3439.7,3439.3,5.289]
[1721345216396,2.90714,3439.8,3439.3,5.289]
[1721345216714,0.04891394,3439.7,3439.3,5.289]
[1721345216878,2.90714,3439.8,3439.3,5.289]
[1721345217199,0.04886858,3439.6,3439.3,5.289]
[1721345217394,0.04886858,3439.6,3439.3,8.19652]
[1721345217611,2.90714,3439.8,3439.3,5.289]
[1721345218075,0.04890854,3439.7,3439.3,5.289]
[1721345218276,1.037,3439.9,3439.3,5.289]
[1721345218476,0.04886858,3439.6,3439.4,2.90748]
[1721345218917,3.94406,3439.9,3439.4,2.90748]
[1721345219098,0.04891448,3439.5,3439.4,2.90748]
[1721345219410,3.94406,3439.9,3439.4,2.90748]
[1721345219973,0.04905583,3439.8,3439.4,2.90748]
[1721345220925,0.04905583,3439.8,3439.6,2.90731]
[1721345221211,1.037,3439.9,3439.6,2.90725]
[1721345221433,0.04916619,3439.7,3439.6,2.90725]
[1721345221573,1.037,3439.9,3439.6,2.90725]
[1721345221972,1.037,3439.7,3439.4,2.90743]
[1721345222191,1.037,3439.7,3439.4,5.81484]
[1721345222424,1.037,3439.7,3439.5,2.90737]
[1721345225324,0.04917347,3439.6,3439.5,2.90737]
[1721345230553,1.037,3439.9,3439.5,2.90737]
[1721345230758,0.04904033,3439.6,3439.5,2.90737]
[1721345230960,1.037,3439.9,3439.5,2.90737]
[1721345231257,0.04904033,3439.6,3439.5,2.90737]
[1721345231455,1.037,3439.9,3439.5,2.90737]
[1721345231656,0.04904033,3439.6,3439.5,2.90737]
[1721345231960,1.037,3439.9,3439.5,2.90737]
[1721345232122,0.04904033,3439.6,3439.5,2.90737]
[1721345232453,0.04904033,3439.6,3439.3,2.3815]
[1721345232894,3.94407,3439.9,3439.3,2.3815]
[1721345233019,0.04900037,3439.5,3439.3,2.3815]
[1721345233219,3.94407,3439.9,3439.3,2.3815]
[1721345233419,0.04912025,3439.8,3439.4,2.90744]
[1721345234217,0.04912025,3439.8,3439.3,5.28905]
[1721345234218,1.037,3439.7,3439.3,5.28905]
[1721345234729,0.04904033,3439.6,3439.3,5.28905]
[1721345234937,0.04904033,3439.6,3439.3,5.28901]
[1721345235241,1.037,3439.7,3439.3,5.28901]
[1721345235630,0.04902523,3439.6,3439.3,5.28901]
[1721345239832,3.94411,3439.9,3439.3,5.289]
[1721345240021,0.04908368,3439.8,3439.3,5.289]
[1721345240222,0.04908368,3439.8,3439.4,2.90747]
[1721345240969,1.08608368,3439.8,3439.5,2.90738]
[1721345242273,1.08608368,3439.8,3439.3,5.28899]
[1721345243066,1.08608368,3439.8,3439.4,2.90746]
[1721345243475,0.04908368,3439.8,3439.4,2.90746]
[1721345243631,1.037,3439.8,3439.4,2.90746]
[1721345243832,0.04893641,3439.7,3439.4,2.90746]
[1721345244259,0.04889645,3439.6,3439.4,2.90746]
[1721345244569,1.037,3439.8,3439.4,2.90746]
[1721345244734,0.04885648,3439.5,3439.4,2.90746]
[1721345244936,1.037,3439.8,3439.4,2.90746]
[1721345245132,0.04885648,3439.5,3439.4,2.90746]
[1721345245359,1.037,3439.8,3439.4,2.90746]
[1721345245559,0.04885648,3439.5,3439.4,2.90746]
[1721345245749,1.037,3439.8,3439.4,2.90746]
[1721345245952,0.04885648,3439.5,3439.4,2.90746]
[1721345246237,1.037,3439.8,3439.4,2.90746]
[1721345246734,0.04893641,3439.7,3439.4,2.90746]
[1721345246935,1.037,3439.8,3439.4,2.90746]
[1721345247133,0.04889645,3439.6,3439.4,2.90746]
[1721345247444,1.037,3439.8,3439.4,2.90746]
[1721345247630,0.394408,3439.7,3439.4,2.90746]
[1721345248063,0.04902523,3439.6,3439.4,2.90746]
[1721345248865,1.037,3439.8,3439.3,2.3815]
[1721345248866,3.94415,3439.8,3439.3,5.28905]
[1721345249067,0.04898527,3439.5,3439.3,5.28905]
[1721345249460,0.04894098,3439.4,3439.3,5.28905]
[1721345249659,3.94415,3439.8,3439.3,5.28905]
[1721345249865,0.04894098,3439.4,3439.3,5.28905]
[1721345250373,0.04896244,3439.4,3439.3,5.28905]
[1721345250669,3.94415,3439.8,3439.3,2.90755]
[1721345250670,1.037,3439.6,3439.3,2.90755]
[1721345250874,0.04896244,3439.4,3439.3,2.90755]
[1721345251177,1.037,3439.6,3439.3,2.90755]
[1721345251860,1.037,3439.6,3439.1,5.16976]
[1721345252239,1.037,3439.6,3439.2,2.9076]
[1721345252777,4.338745,3439.6,3439.1,2.90766]
[1721345253680,1.037,3439.4,3439.1,2.90766]
[1721345254537,0.04892248,3439.3,3439.1,2.90766]
[1721345254743,0.04892248,3439.3,3439.2,1.01121362]
[1721345254942,0.04892248,3439.3,3439.1,2.90766]
[1721345255343,0.04892248,3439.3,3439.2,1.01122134]
[1721345255553,0.04892248,3439.3,3439.2,1.0112226]
[1721345255783,0.04892248,3439.3,3439.1,2.90766]
[1721345256782,1.037,3439.6,3439.1,2.90766]
[1721345256983,0.04888251,3439.2,3439.1,2.90766]
[1721345257157,1.037,3439.6,3439.1,5.43572423]
[1721345257358,1.037,3439.6,3439.1,2.90766]
[1721345257558,0.04900241,3439.5,3439.1,2.90766]
[1721345272998,0.04900241,3439.5,3439.1,5.81534]
[1721345273196,0.04900241,3439.5,3439.1,2.90766]
[1721345273990,0.04900241,3439.5,3439.1,5.81534]
[1721345274188,0.04900241,3439.5,3439.2,2.2851]
[1721345275825,0.04900241,3439.5,3439.1,2.90766]
[1721345276190,0.04900241,3439.5,3439.1,5.81533]
[1721345276387,0.04900241,3439.5,3439.2,3.91887393]
[1721345276610,0.04900241,3439.5,3439.2,2.90764]
[1721345281341,0.04900241,3439.5,3439.1,2.90766]
[1721345281505,0.04900241,3439.5,3439.4,2.3624]
[1721345281727,4.39989392,3439.8,3439.4,2.3624]
[1721345281889,0.04723874,3439.5,3439.4,2.3624]
[1721345282095,4.39989392,3439.8,3439.4,2.3624]
[1721345282309,0.04725427,3439.7,3439.4,2.3624]
[1721345282518,4.39989392,3439.8,3439.4,2.3624]
[1721345283035,0.04727573,3439.7,3439.4,2.3624]
[1721345283391,4.39989392,3439.8,3439.4,2.3624]
[1721345283592,0.04727573,3439.7,3439.4,2.3624]
[1721345283834,0.45574392,3439.8,3439.5,2.90733]
[1721345284003,0.04723577,3439.6,3439.5,2.90733]
[1721345284207,0.45574392,3439.8,3439.5,2.90733]
[1721345284444,0.04723577,3439.6,3439.5,2.90733]
[1721345285099,0.45574392,3439.8,3439.5,2.90733]
[1721345285297,0.04723577,3439.6,3439.5,2.90733]
[1721345285510,0.45574392,3439.8,3439.5,2.90733]
[1721345286045,0.04727573,3439.7,3439.5,2.90733]
[1721345286412,0.45574392,3439.8,3439.5,2.90733]
[1721345286751,0.04723577,3439.6,3439.5,2.90733]
[1721345287243,0.45574392,3439.8,3439.5,2.90733]
[1721345287539,0.04723577,3439.6,3439.5,2.90733]
[1721345287916,0.45574392,3439.8,3439.5,2.90733]
[1721345288443,0.04728326,3439.7,3439.5,2.90733]
[1721345288940,0.0472433,3439.6,3439.5,2.90733]
[1721345289300,0.45574392,3439.8,3439.5,2.90733]
[1721345289500,0.0472433,3439.6,3439.5,2.90733]
[1721345290013,0.45574392,3439.8,3439.5,2.90733]
[1721345290214,0.0472433,3439.6,3439.5,2.90733]
[1721345290421,0.45574392,3439.8,3439.5,2.90733]
[1721345290644,0.0472433,3439.6,3439.5,2.90733]
[1721345290810,0.45574392,3439.8,3439.5,2.90733]
[1721345291007,0.04728326,3439.7,3439.4,2.3624]
[1721345291213,1.77241072,3439.7,3439.4,2.3624]
[1721345291450,0.0472433,3439.6,3439.3,2.90749]
[1721345291672,0.0472433,3439.6,3439.2,2.4668]
[1721345291812,1.037,3439.5,3439.2,2.4668]
[1721345292011,1.037,3439.3,3439.0,0.61000463]
[1721345292247,0.04731067,3439.5,3438.9,0.61000463]
[1721345292248,1.037,3439.1,3438.9,0.61000463]
[1721345292447,1.037,3439.1,3438.4,0.61000463]
[1721345292448,2.908,3438.8,3438.4,0.61000463]
[1721345292748,1.037,3438.6,3438.3,2.90836]
[1721345292951,0.04636699,3438.5,3438.3,2.90836]
[1721345293163,1.037,3438.6,3438.3,2.90836]
[1721345293364,1.037,3438.6,3438.4,2.90831]
[1721345293516,1.037,3438.8,3438.4,2.90825]
[1721345293711,1.037,3439.0,3438.5,5.25836]
[1721345293912,1.037,3439.0,3438.6,2.90816]
[1721345294359,0.04723346,3438.9,3438.6,2.90816]
[1721345295318,0.04723346,3438.9,3438.5,5.25843]
[1721345296142,1.037,3438.6,3438.3,2.90837]
[1721345296453,0.04688196,3438.5,3438.3,2.90837]
[1721345296620,0.04688196,3438.5,3438.4,2.90832]
[1721345296821,1.037,3438.8,3438.4,2.90832]
[1721345297652,5.34868,3439.2,3438.5,2.90817]
[1721345297653,0.04698339,3438.7,3438.5,2.90817]
[1721345297818,0.04698339,3438.7,3438.4,2.90827]
[1721345298014,1.037,3439.0,3438.5,2.90824]
[1721345298215,0.04703827,3438.9,3438.5,2.90824]
[1721345300717,0.04703827,3438.9,3438.5,5.81641]
[1721345301152,0.04703827,3438.9,3438.5,2.90817]
[1721345301773,0.04703827,3438.9,3438.5,5.81634]
[1721345301922,0.04703827,3438.9,3438.6,2.90813]
[1721345302453,0.04703827,3438.9,3438.5,5.81634]
[1721345303927,0.04703827,3438.9,3438.6,2.90812]
[1721345305431,0.04703827,3438.9,3438.7,2.90806]
[1721345308674,0.04703827,3438.9,3438.5,2.90816]
[1721345308890,1.037,3438.8,3438.4,2.90832]
[1721345309039,1.037,3438.6,3438.2,2.4102]
[1721345309599,1.037,3438.6,3438.3,2.90836]
[1721345310877,1.037,3438.6,3438.3,5.8167]
[1721345311486,1.037,3438.6,3438.3,2.90834]
[1721345312446,0.04647857,3438.7,3438.3,2.90834]
[1721345312646,0.04635142,3438.5,3438.4,2.90832]
[1721345312886,1.037,3438.8,3438.4,2.90832]
[1721345313181,1.037,3438.6,3438.4,2.90832]
[1721345313384,0.04629972,3438.5,3438.1,2.90854]
[1721345313584,0.04629972,3438.5,3438.3,2.9084]
[1721345313779,0.04629972,3438.5,3438.2,2.90849]
[1721345314376,0.04629972,3438.5,3438.1,2.9085]
[1721345314582,1.037,3438.4,3438.1,2.9085]
[1721345314782,0.04619616,3438.3,3438.1,2.9085]
[1721345314943,1.037,3438.6,3438.1,2.9085]
[1721345315143,0.04627612,3438.5,3438.1,2.9085]
[1721345315593,1.037,3438.4,3438.1,2.9085]
[1721345315774,0.04457762,3438.3,3438.1,2.9085]
[1721345315958,1.037,3438.6,3438.1,2.9085]
[1721345316283,0.04465757,3438.5,3438.1,2.9085]
[1721345316486,1.037,3438.4,3438.1,2.9085]
[1721345316890,0.04457762,3438.3,3438.1,2.9085]
[1721345318185,0.04453764,3438.2,3438.1,2.9085]
[1721345318366,1.037,3438.4,3438.1,2.9085]